Cogmind - Beta 12 @@@ ROGUE MODE // 2023.07.18 @ 09:46:40 Player: ZOT Result: Destroyed by S-10 Pest with Light Assault Rifle Performance ------------- Evolutions (1) 500 Regions Visited (2) 400 Robots Destroyed (26) 130 Value Destroyed (559) 559 Prototype IDs (0) 0 Alien Tech Used (0) 0 Bonus (29) 29 TOTAL SCORE: 1618 Bonus ------- High Alert Combat Kills 29 Cogmind --------- Core Integrity 0/400 Matter 288/300 Energy 76/100 System Corruption 0% Temperature Cool (9) Movement Core (50) Location -9/Materials Parts ------- > --- POWER (2) -------- (None) > --- PROPULSION (3) --- (None) > --- UTILITY (2) ------ Targeting Computer > --- WEAPON (2) ------- Flail > --- INVENTORY (5) ---- Aluminum Leg Improved Aluminum Leg Terrain Scan Processor Light Armor Plating Peak State ------------ > --- POWER ------------ Light Ion Engine Light Ion Engine > --- PROPULSION ------- Aluminum Leg Flight Unit Flight Unit > --- UTILITY ---------- Weight Redist. System Targeting Computer > --- WEAPON ----------- Rocket Launcher Flail > --- INVENTORY -------- Aluminum Leg Improved Aluminum Leg Terrain Scan Processor Light Armor Plating Beam Rifle [Rating: 12] Favorites ----------- Power Light Ion Engine Engine Light Ion Engine Propulsion Flight Unit Leg Aluminum Leg Flight Unit Flight Unit Utility Seismic Detector Device Seismic Detector Processor Targeting Computer Weapon Light Assault Rifle Energy Gun EM Pulse Gun Ballistic Gun Light Assault Rifle Launcher Grenade Launcher Impact Weapon Flail Build | -11 -10 -9 ------- Run | Jun Mat Mat Slots Evolved 2 | . . 2 Power 1 | . . 1 Propulsion 1 | . . 1 Utility . | . . . Weapon . | . . . Parts Attached 23 | 7 6 10 Power 3 | 1 . 2 Engine 3 | 1 . 2 Core . | . . . Reactor . | . . . Propulsion 8 | 2 5 1 Treads . | . . . Leg 4 | 2 1 1 Wheel . | . . . Hover . | . . . Flight 4 | . 4 . Utility 5 | 2 1 2 Device 4 | 2 1 1 Storage . | . . . Processor 1 | . . 1 Hackware . | . . . Protection . | . . . Artifact . | . . . Weapon 7 | 2 . 5 Energy Gun 2 | 1 . 1 Energy Cannon . | . . . Ballistic Gun 1 | 1 . . Ballistic Cannon . | . . . Launcher 2 | . . 2 Special Weapon . | . . . Impact Weapon 2 | . . 2 Slashing Weapon . | . . . Piercing Weapon . | . . . Special Melee Weapon . | . . . Unidentified Prototypes . | . . . Parts Lost 13 | . . 13 Power 3 | . . 3 Propulsion 3 | . . 3 Utility 3 | . . 3 Weapon 4 | . . 4 Highest Loss Streak 8 | . . 8 To Critical Strikes . | . . . Average Slot Usage (%) 92 | . 100 88 Engine 17 | . 14 19 Leg 10 | . 11 9 Flight 18 | . 16 19 Device 19 | . 28 14 Processor 3 | . . 5 Energy Gun 6 | . 14 2 Ballistic Gun 8 | . 14 6 Launcher 4 | . . 6 Impact Weapon 2 | . . 4 Naked Turns . | . . . Heaviest Build 12 | 8 8 12 Greatest Support 20 | 20 20 14 Greatest Overweight (x) 1 | . . 1 Average Overweight (x) . | . . . Largest Inventory Capacity 5 | 5 5 5 Average Capacity 5 | 5 5 5 Most Carried 5 | 5 5 5 Average Carried 4 | 2 4 4 Final Capacity 5 | 5 5 5 Final Carried 5 | 5 5 4 Class Distribution -------------------- 100% | Mutant Dominant Class ---------------- Mutant | -10/Materials Mutant | -9/Materials Resources | -11 -10 -9 ----------- Run | Jun Mat Mat Matter Collected 545 | 254 80 211 Remotely . | . . . Salvage Created 593 | 104 97 392 Parts 42 | 6 9 27 Haulers Intercepted . | . . . Recyclers Shooed 1 | . . 1 Parts Field Recycled . | . . . Retrieved Matter . | . . . Parts Self-Destructed . | . . . Prevented . | . . . Kills | -11 -10 -9 ------- Run | Jun Mat Mat Combat Hostiles Destroyed 18 | . 5 13 Melee 1 | . . 1 Guns 8 | . 5 3 AOE 9 | . . 9 Classes Destroyed 8 | 2 2 4 Worker 1 | . . 1 Tunneler 2 | 2 . . Recycler 2 | 1 . 1 Watcher 3 | . . 3 Swarmer 8 | . 4 4 Grunt 7 | . 1 6 Brawler 1 | . . 1 Sentry 2 | . . 2 Best Kill Streak 7 | 2 4 7 Combat Bots Only 5 | . 4 5 Max Kills in Single Turn 4 | 1 1 4 Gunslinging . | . . . Exploded 4 | . . 4 Melee 1 | . . 1 Uniques/NPCs Destroyed . | . . . Combat | -11 -10 -9 -------- Run | Jun Mat Mat Damage Taken 1195 | . 169 1026 Core 431 | . 29 402 Absorbed by Shields . | . . . Core Remaining (%) 94 | 100 88 . Volleys Fired 75 | 6 25 44 Largest 2 | 1 1 2 Hottest 56 | 40 40 56 Shots Fired 77 | 6 25 46 Gun 61 | 6 25 30 Cannon . | . . . Launcher 16 | . . 16 Special . | . . . Kinetic 29 | 4 . 25 Thermal 5 | . . 5 Explosive 16 | . . 16 Electromagnetic 27 | 2 25 . Robot Hit Streak 11 | 5 11 8 Robot Miss Streak 4 | 1 3 4 Penetration Max . | . . . Secondary Targets . | . . . Shots Hit Robots 60 | 5 15 40 Core Hits 40 | 4 5 31 Critical Kills . | . . . Critical Parts Destroyed 1 | . . 1 Critical Strikes 4 | . . 4 Burn 3 | . . 3 Smash 1 | . . 1 Melee Attacks 17 | . . 17 Impact 17 | . . 17 Slashing . | . . . Piercing . | . . . Sneak Attacks . | . . . Combat Hostiles . | . . . Follow-up Attacks . | . . . Damage Inflicted 1783 | 53 254 1476 Guns 433 | 53 181 199 Cannons . | . . . Explosions 1092 | . 73 1019 Melee 258 | . . 258 Ramming . | . . . Kinetic 170 | 28 . 142 Thermal 206 | . 73 133 Explosive 943 | . . 943 Electromagnetic 206 | 25 181 . Impact 258 | . . 258 Slashing . | . . . Piercing . | . . . Highest Corruption 2 | . 2 . Average Corruption 2 | . 2 . Corruption Purged . | . . . Corruption Blocked . | . . . Effects 2 | . 2 . Heat Flow Errors 1 | . 1 . Energy Discharges 1 | . 1 . Overload Shots . | . . . Overflow Damage 85 | . . 85 Projectiles . | . . . Explosions 32 | . . 32 Melee 53 | . . 53 Knockbacks 4 | . . 4 Impact 3 | . . 3 Kinetic . | . . . Secondary 1 | . . 1 Self-Inflicted Damage 140 | . 40 100 Shots 3 | . 1 2 Rammed . | . . . Targets Rammed . | . . . Kicked . | . . . Crushed . | . . . Highest Temperature 267 | . 267 61 Average Temperature 68 | . 115 11 Received Heat Transfer 390 | . 24 366 Siege Activations . | . . . Robots Corrupted . | . . . Combat Hostiles . | . . . Parts Fried . | . . . Impact Corruptions 1 | . . 1 Robots Melted . | . . . Combat Hostiles . | . . . Parts Melted . | . . . Heat Transferred 570 | . 150 420 Parts Sabotaged . | . . . Parts Stolen . | . . . Parts Stripped . | . . . Power Chain Reactions 1 | . 1 . Missiles Intercepted . | . . . Alert | -11 -10 -9 ------- Run | Jun Mat Mat Peak Influence 552 | 15 226 552 Initial 94 | . 9 94 Average 225 | 6 132 312 Maximum Alert Level 2 | . 1 2 Low Security (%) 55 | 100 66 42 Level 1 20 | . 33 17 Level 2 23 | . . 40 Level 3 . | . . . Level 4 . | . . . Level 5 . | . . . High Security . | . . . Max Security . | . . . Squads Dispatched 2 | . 1 1 Investigation . | . . . Extermination . | . . . Reinforcement 2 | . 1 1 Assault . | . . . Garrison . | . . . Intercept . | . . . Searches Triggered . | . . . Construction Impeded . | . . . Haulers Reinforced . | . . . Active Scanning Responses . | . . . Cargo Convoy Interrupts . | . . . Stealth | -11 -10 -9 --------- Run | Jun Mat Mat Distress Signals 1 | . . 1 Communications Jammed . | . . . Distress Signals . | . . . Times Spotted 41 | . 12 29 Peak Tracking Total 12 | . 3 12 Tactical Retreats 2 | . 2 . Traps | -11 -10 -9 ------- Run | Jun Mat Mat Traps Triggered 1 | . 1 . Indirectly . | . . . Trap Hack Attempts . | . . . Triggered . | . . . Disarmed . | . . . Reprogrammed . | . . . Reused . | . . . Traps Extracted . | . . . Installed . | . . . Triggered . | . . . Machines | -11 -10 -9 ---------- Run | Jun Mat Mat Machines Disabled 5 | . . 5 Max in Single Turn 2 | . . 2 Machines Repaired . | . . . Machines Sabotaged . | . . . Overloaded Fab Kills . | . . . Hacking | -11 -10 -9 --------- Run | Jun Mat Mat Machines Accessed 5 | . 4 1 Terminals 5 | . 4 1 Fabricators . | . . . Repair Stations . | . . . Recycling Units . | . . . Scanalyzers . | . . . Garrison Access . | . . . Total Hacks 16 | . 11 5 Successful 7 | . 5 2 Failed 9 | . 6 3 Catastrophic 2 | . 1 1 Database Lockouts . | . . . Manual 10 | . 5 5 Terminals 16 | . 11 5 Fabricators . | . . . Repair Stations . | . . . Recycling Units . | . . . Scanalyzers . | . . . Garrison Access . | . . . Terminal Hacks 6 | . 4 2 Branch Access Points 1 | . . 1 Locate Traps 1 | . 1 . Zone Layout 4 | . 3 1 Fabricator Hacks . | . . . Repair Station Hacks . | . . . Recycling Unit Hacks . | . . . Scanalyzer . | . . . Garrison Access Hacks . | . . . Unauthorized Hacks 1 | . 1 . Terminals 1 | . 1 . Track 1 | . 1 . Fabricators . | . . . Repair Stations . | . . . Recycling Units . | . . . Scanalyzers . | . . . Garrison Access . | . . . Data Cores Recovered . | . . . Used . | . . . Hacking Detections 5 | . 4 1 Full Trace Events . | . . . Feedback Events . | . . . Feedback Blocked . | . . . Robot Schematics Acquired . | . . . Robots Built . | . . . Authchips . | . . . Time . | . . . Total Robot Build Rating . | . . . Part Schematics Acquired . | . . . Parts Built . | . . . Authchips . | . . . Time . | . . . Total Part Build Rating . | . . . Parts Repaired . | . . . Time . | . . . Parts Recycled . | . . . Recycled Matter . | . . . Retrieved Matter . | . . . Retrieved Components . | . . . Parts Scanalyzed . | . . . Part Schematics Acquired . | . . . Parts Damaged . | . . . Bothacking | -11 -10 -9 ------------ Run | Jun Mat Mat Used RIF Installer . | . . . Robots Hacked . | . . . Non-combat . | . . . Combat . | . . . Robot Hacks Applied . | . . . Relay Couplers Released . | . . . Fabnet Peak Effective % . | . . . Robots Rewired . | . . . Allies Hacked . | . . . Hacks Repelled . | . . . Allies | -11 -10 -9 -------- Run | Jun Mat Mat Total Allies . | . . . Largest Group . | . . . Highest-Rated Group . | . . . Highest-Rated Ally . | . . . Total Orders . | . . . Ally Attacks . | . . . Total Damage . | . . . Kills . | . . . Allies Corrupted . | . . . Allies Melted . | . . . Intel | -11 -10 -9 ------- Run | Jun Mat Mat Robot Analysis Total . | . . . Derelict Logs Recovered . | . . . Drone Launches . | . . . Drone Recoveries . | . . . Exploration | -11 -10 -9 ------------- Run | Jun Mat Mat Turns Passed 706 | 78 210 418 Spaces Moved 578 | 45 208 325 Core 40 | 6 . 34 Treads . | . . . Legs 136 | 39 57 40 Wheels . | . . . Hover . | . . . Flight 402 | . 151 251 Fastest Speed 37 | 50 37 47 Average Speed 65 | 110 59 63 Slowest Speed 190 | 120 120 190 Overloaded Moves . | . . . Propulsion Burnouts . | . . . Robots Hopped . | . . . Cave-ins Triggered . | . . . Exploration Rate (%) 26 | 4 40 34 Regions Visited 2 Branch Regions . Pre-discovered Areas . | . . . Known Exits Taken . | . . . Unknown Exits Taken 2 | 1 1 . Scrap Searched . | . . . Spaces Dug . | . . . Terrain Destroyed 96 | . 3 93 Melee . | . . . Projectile . | . . . AOE 96 | . 3 93 Terrain Rammed . | . . . Walls Destroyed . | . . . Machines Disabled . | . . . Actions | -11 -10 -9 --------- Run | Jun Mat Mat Total 806 | 66 268 472 Wait 90 | . 22 68 Move 576 | 44 207 325 Hop . | . . . Pick Up 17 | 9 3 5 Fast Attach 7 | 3 . 4 Attach 9 | 4 . 5 Detach . | . . . Swap 7 | . 6 1 Drop 8 | . 5 3 Fire 75 | 6 25 44 Melee 17 | . . 17 Ram . | . . . Kick . | . . . Crush . | . . . Escape Stasis . | . . . Rewire . | . . . Trap . | . . . Miscellaneous . | . . . Route ------- -11/Junkyard -10/Materials -9/Materials (discovered 2 exits: *Min x2) History --------- Turn | Location | Event 3 | -11/Junkyard | Discovered new exit (range 15) 79 | -11/Junkyard | Entered Materials 267 | -10/Materials | Discovered new exit (range 13) 289 | -10/Materials | Entered another Materials area 289 | -9/Materials | Evolved 2 slots: Power x1, Propulsion x1 311 | -9/Materials | Build established: Mutant 552 | -9/Materials | Lost 3 parts (1p1u1w) 620 | -9/Materials | Identified exit to Mines 670 | -9/Materials | Core integrity fell below 50% 705 | -9/Materials | Core integrity fell below 20% 707 | -9/Materials | Destroyed by S-10 Pest with Light Assault Rifle Last Messages --------------- 00656_ Flight Unit destroyed. 00657_ Rocket Launcher destroyed. 00657_ Destroyed Rocket Launcher. 00658_ Critical hit (Burn: +37). 00660_ G-34 Mercenary suffers critical hit (Burn). 00661_ Aluminum Leg destroyed. 00663_ K-01 Serf collects debris. 00670_ G-34 Mercenary knocked back. 00670_ K-01 Serf collects debris. 00677_ G-34 Mercenary suffers critical hit (Burn). 00678_ K-01 Serf cleans the Hadron Collector. 00679_ G-34 Mercenary suffers critical hit (Burn). 00680_ Lgt. Ion Engine destroyed. 00681_ G-34 Mercenary destroyed. 00683_ Acquired 34 matter. 00685_ K-01 Serf collects debris. 00693_ Beam Rifle destroyed. 00701_ S-10 Pest destroyed. 00703_ Weight Redist. System destroyed. 00707_ Terminal disabled. Map ----- +----------------------------------------------------+ | ?????????????????????????# # # + | | ?????????????????????????+ /= # # | | ?????????????????????????# # """" # # | | ?????????????????????????# # """" # # | | ?????????????????????????# # """" # #### | | ?????????????????????????# # # ## | | ?????????????????????????# ######## ## | | ??????????????############ #?###### ## " | | ????????????? #? # ## " | | ????????????? # ############ " | | ????????????? # " " #??????????# | | ??????????????############ + "R" #??????????### | | ?????????????????????????# # """ [#????????????? | | ?????????????????????????# # #????????????? | | ?????????????????????????# #?######????????????? | | ?????????????????????????# #???????????????????? | | ?????????????????????????+ #???????????????????? | | ?????????????????????????# #??##### #??????????? | | ?????????????????????????# #? ??????????? | | ?????????????????????????# #?"" #?????????? | | ????????????????????###### # "" #?????????? | | ????????????????????# # "T #?????????? | | ????????????????????# + "" """???????????? | | ????????????????????# # "" """???????????? | | ????????????????????# ####+# ""????????????? | | ???????????????# # #@ s #? ???????????? | | ???????????????# s[% "#?#####+##??????????? | | ???????????????# #s*T"#???????????????????? | | ???????????? # Y""#???????????????????? | | ???????????? ####+#####?# #???????????????????? | | ????????????????????????# ???????????????????? | | ????????????????????????#// ##?????>????????????? | | ????????????????????????#// #???????????????????? | | ????????????????????????#/ #???????????????????? | | ????????????????????????######???????????????????? | | ?????????????????????????????????????????????????? | | ?????????????????????????????????????????????????? | | ?????????????????????????????????????????????????? | | ?????????????????????????????????????????????????? | | ?????????????????????????????????????????????????? | | ?????????????????????????????????????????????????? | | ?????????????????????????????????????????????????? | | ?????????????????????????????????????????????????? | | ?????????????????????????????????????????????????? | | ?????????????????????????????????????????????????? | | ?????????????????????????????????????????????????? | | | | | | | | | +----------------------------------------------------+ Best States ------------- Heat Dissipation 28 Energy Generation 15 Energy Capacity 150 Matter Stores 300 Matter Capacity 300 Sight Range 16 Terrain Scan Range 16 Terrain Scan Density 10 Additional Mass Support 6 Evasion (%) 62 Targeting Accuracy 5 Item Schematics ----------------- None Robot Schematics ------------------ None Fabricated ------------ Nothing Alien Tech Used ----------------- None Achievements -------------- None Challenges ------------ None Game ------ Seed UltimateDefenseProtomatter Manual? 0 Play Time 00:19:07 Cumulative 58.8 hours Start 2023.07.18 @ 09:30:28 End 2023.07.18 @ 09:46:40 Sessions 1 Manual Loads 0 Difficulty Rogue Special Mode None Game No. 78 Rogue 78 Adventurer 0 Explorer 0 Win Type - Total 0 Types 0/0/0/0/0/0/0/0/0 Lore% 22 Gallery% 37 Achievement% 23 Wizard Run 0 Options --------- ASCII 0 Keyboard 0 Movement Mouse Keybinds 0 Fullscreen 1 Font 24/Smallcaps Map View 76x50 Tactical HUD 1 Map Filters NONE Filters NONE Steam 1 RUN: 55f5866c-1a7d-4b91-85d0-d71095d38bff